bitfinex/quotes_SOLUSD_20251106
["timestamp","ask_amount","ask_price","bid_price","bid_amount"]
[1762407613903,7.44,159.73,159.69,21.91746508]
[1762407614209,21.502,159.75,159.7,0.66]
[1762407614403,21.502,159.75,159.69,35.02362621]
[1762407614723,21.502,159.75,159.69,35.68362621]
[1762407615427,27.16816113,159.75,159.69,30.01746508]
[1762407615621,21.502,159.75,159.69,30.01746508]
[1762407616032,27.16816113,159.75,159.69,30.01746508]
[1762407618101,21.502,159.75,159.69,35.68362621]
[1762407618307,0.2,159.75,159.74,5.66616113]
[1762407618530,0.2,159.75,159.74,0.66]
[1762407619422,0.2,159.75,159.74,6.32616113]
[1762407620105,0.2,159.78,159.75,9.78882769]
[1762407620319,0.2,159.78,159.77,5.66616113]
[1762407620844,0.2,159.78,159.77,16.11498882]
[1762407621007,1e-08,159.78,159.77,16.11498882]
[1762407621858,1e-08,159.78,159.77,10.44882769]
[1762407622030,1e-08,159.78,159.77,16.11498882]
[1762407622427,1e-08,159.78,159.77,22.37398612]
[1762407623562,1e-08,159.78,159.77,29.79398612]
[1762407626549,1e-08,159.78,159.77,23.46782499]
[1762407626756,1e-08,159.78,159.77,19.34515843]
[1762407626936,0.71000001,159.78,159.73,15.65126037]
[1762407627252,5.66616113,159.77,159.7,5.66616113]
[1762407627459,5.66616113,159.77,159.71,7.42]
[1762407627653,0.71,159.76,159.71,7.42]
[1762407628025,0.71,159.76,159.71,13.08616113]
[1762407628925,0.71,159.76,159.71,7.42]
[1762407629149,0.71,159.76,159.72,6.26095667]
[1762407629451,0.71,159.76,159.72,21.91334835]
[1762407631253,0.71,159.76,159.72,27.57950948]
[1762407631544,0.71,159.76,159.72,34.99950948]
[1762407632356,0.71,159.76,159.72,34.97950948]
[1762407632848,0.71,159.76,159.72,29.31334835]
[1762407633049,0.71,159.76,159.7,0.66]
[1762407633252,0.71,159.76,159.69,11.92829262]
[1762407633253,6.37616113,159.76,159.69,11.92829262]
[1762407633438,6.37616113,159.76,159.7,13.06616113]
[1762407633626,0.71,159.75,159.7,13.06616113]
[1762407634150,0.71,159.75,159.7,7.4]
[1762407634346,0.71,159.75,159.7,13.06616113]
[1762407635132,0.71,159.75,159.71,21.91472042]
[1762407635652,0.71,159.75,159.71,27.58088155]
[1762407635830,0.71,159.75,159.72,5.66616113]
[1762407636030,0.72,159.77,159.73,5.66616113]
[1762407636235,0.72,159.76,159.73,5.66616113]
[1762407637357,0.72,159.76,159.71,21.91472042]
[1762407637550,0.72,159.76,159.73,5.66616113]
[1762407639056,0.72,159.76,159.72,5.66616113]
[1762407639660,0.72,159.76,159.73,27.57813758]
[1762407640442,105.42000001,159.78,159.74,5.66616113]
[1762407640637,0.72,159.77,159.74,5.66616113]
[1762407640850,0.72,159.77,159.73,34.97813758]
[1762407641361,0.72,159.77,159.73,29.31197645]
[1762407641546,0.72,159.77,159.73,34.97813758]
[1762407642046,0.72,159.77,159.73,29.31197645]
[1762407642241,0.72,159.77,159.73,34.97813758]
[1762407642461,0.72,159.77,159.73,31.48202832]
[1762407642958,0.72,159.77,159.73,52.07402832]
[1762407643270,0.72,159.77,159.75,6.2597809]
[1762407647590,112.08000001,159.78,159.77,9.78882769]
[1762407647591,1e-08,159.78,159.77,9.78882769]
[1762407647811,1e-08,159.78,159.77,11.95887956]
[1762407648000,1e-08,159.78,159.77,18.91787686]
[1762407648968,1e-08,159.78,159.77,39.50987686]
[1762407649166,1e-08,159.78,159.77,37.33982499]
[1762407649368,1e-08,159.78,159.77,46.88987686]
[1762407652498,1e-08,159.78,159.77,48.10774665]
[1762407653184,1e-08,159.78,159.77,16.04782499]
[1762407653383,0.71000001,159.78,159.77,6.2589973]
[1762407653588,0.71000001,159.78,159.75,19.03737392]
[1762407653814,1e-08,159.78,159.77,3.38792166]
[1762407654498,1e-08,159.78,159.76,13.17674935]
[1762407655613,1e-08,159.78,159.77,3.38792166]
[1762407655798,0.71000001,159.78,159.77,6.2589973]
[1762407656110,1e-08,159.78,159.77,6.2589973]
[1762407663793,0.71000001,159.78,159.77,6.2589973]
[1762407664000,105.41000001,159.78,159.77,6.2589973]
[1762407666422,105.41000001,159.78,159.76,6.25938908]
[1762407666841,105.41000001,159.78,159.73,30.38082769]
[1762407667133,105.41000001,159.78,159.65,0.32600813]
[1762407667134,4.09792166,159.77,159.72,17.14882769]
[1762407667300,3.38792166,159.76,159.72,17.14882769]
[1762407667622,4.09792166,159.76,159.72,17.14882769]
[1762407667922,0.71,159.75,159.72,17.14882769]
[1762407668522,0.71,159.75,159.73,6.2605647]
[1762407670228,4.09792166,159.75,159.69,16.30509017]
[1762407670403,4.09792166,159.75,159.7,16.98966242]
[1762407670724,3.38792166,159.73,159.7,6.26174076]
[1762407670909,0.71,159.72,159.7,6.26174076]
[1762407671518,0.71,159.72,159.7,21.91609266]
[1762407672314,0.71,159.72,159.69,7.34]
[1762407672705,0.71,159.72,159.69,13.60208438]
[1762407673005,0.71,159.72,159.69,16.99000604]
[1762407673526,0.71,159.72,159.69,32.64533824]
[1762407673725,1e-08,159.78,159.72,9.78882769]
[1762407673919,0.71,159.77,159.75,3.38792166]
[1762407674126,0.71,159.77,159.74,3.38792166]
[1762407674826,0.71,159.77,159.75,3.38792166]
[1762407675229,0.71,159.77,159.73,7.36]
[1762407675432,3.38792166,159.74,159.68,9.78882769]
[1762407675611,3.38792166,159.74,159.69,3.38792166]
[1762407675917,0.71,159.73,159.69,19.0431242]
[1762407676117,0.71,159.73,159.7,3.38792166]
[1762407676734,0.71,159.73,159.71,6.26134869]
[1762407676928,0.71,159.73,159.71,9.64927035]
[1762407677312,0.71,159.73,159.68,3.38792166]
[1762407677625,24.68992166,159.73,159.68,8.01]
[1762407677841,4.09792166,159.73,159.68,11.39792166]
[1762407678126,0.71,159.72,159.68,11.39792166]
[1762407678314,0.71,159.72,159.69,3.38792166]
[1762407678836,0.71,159.72,159.7,6.26174076]
[1762407682334,104.7,159.74,159.7,6.26174076]
[1762407682514,104.7,159.74,159.72,6.26095667]
[1762407682725,0.69,159.75,159.72,9.64887833]
[1762407683241,112.75,159.77,159.73,3.38792166]
[1762407683539,0.69,159.76,159.73,3.38792166]
[1762407683755,0.69,159.76,159.72,9.64887833]
[1762407684241,0.69,159.76,159.72,25.95127001]
[1762407684423,0.69,159.76,159.73,3.38792166]
[1762407685718,0.69,159.76,159.72,21.91334835]
[1762407688315,0.69,159.76,159.72,25.30127001]
[1762407690139,0.69,159.76,159.72,25.95127001]
[1762407692156,0.69,159.76,159.74,6.26017278]
[1762407694749,105.39,159.77,159.73,3.38792166]
[1762407694948,0.69,159.76,159.73,4.03792166]
[1762407695334,0.69,159.76,159.73,3.38792166]
[1762407695766,104.7,159.77,159.74,3.38792166]
[1762407695941,104.7,159.77,159.75,3.38792166]
[1762407696542,104.7,159.77,159.76,6.25938908]
[1762407697259,1e-08,159.78,159.77,9.78882769]
[1762407697441,1e-08,159.78,159.77,21.20674935]
[1762407698756,1e-08,159.78,159.77,27.46574665]
[1762407700758,1e-08,159.78,159.77,20.10574665]
[1762407701059,1e-08,159.78,159.77,27.44574665]
[1762407701657,1e-08,159.85,159.84,30.38082769]
[1762407701857,0.2,159.9,159.85,9.78882769]
[1762407702034,0.69,159.89,159.85,9.78882769]
[1762407702233,0.69,159.89,159.86,10.72792166]
[1762407702967,0.69,159.89,159.87,6.25508225]
[1762407707898,0.69,159.89,159.87,9.64300391]
[1762407708273,3.38792166,159.88,159.82,15.64162589]
[1762407708575,24.66992166,159.89,159.83,42.41501625]
[1762407708866,0.69,159.88,159.84,3.38792166]
[1762407709047,0.2,159.9,159.87,3.38792166]
[1762407709242,0.69,159.89,159.86,3.38792166]
[1762407709445,0.69,159.89,159.86,17.12882769]
[1762407709757,0.69,159.89,159.86,20.51674935]
[1762407710566,0.69,159.89,159.86,17.12882769]
[1762407710870,0.69,159.89,159.86,23.38411858]
[1762407711378,0.69,159.89,159.86,42.41072408]
[1762407714463,0.69,159.89,159.86,41.18933251]
[1762407715088,0.69,159.89,159.86,39.02280242]
[1762407715268,0.69,159.89,159.86,41.18933251]
[1762407716257,0.69,159.89,159.86,33.84933251]
[1762407716458,0.69,159.89,159.86,39.02280242]
[1762407717665,0.69,159.89,159.86,41.18933251]
[1762407718665,0.69,159.89,159.87,2.16653009]
[1762407719578,0.69,159.89,159.86,39.02280242]
[1762407719778,0.69,159.89,159.88,6.25469101]
[1762407720361,0.69,159.89,159.86,7.34]
[1762407720562,2.16653009,159.88,159.84,7.34]
[1762407720775,0.69,159.89,159.86,2.16653009]
[1762407720963,0.69,159.89,159.87,2.16653009]
[1762407722271,0.69,159.89,159.88,6.25469101]
[1762407723583,0.2,159.9,159.88,6.25469101]
[1762407723877,0.9,159.9,159.88,6.25469101]
[1762407725378,0.9,159.9,159.86,21.89325353]
[1762407725571,0.7,159.89,159.87,2.16653009]
[1762407725882,0.7,159.89,159.88,2.16653009]
[1762407726574,0.9,159.9,159.89,6.25429983]
[1762407726776,0.9,159.9,159.89,8.42082992]
[1762407727084,0.9,159.9,159.89,6.25429983]
[1762407727967,0.2,159.9,159.89,6.25429983]
[1762407729288,0.2,159.9,159.88,6.25469101]
[1762407729661,0.9,159.9,159.88,6.25469101]
[1762407730064,0.2,159.9,159.88,6.25469101]
[1762407731181,0.9,159.9,159.88,6.25469101]
[1762407731386,0.2,159.9,159.88,6.25469101]
[1762407731692,0.2,159.9,159.89,2.16653009]
[1762407733372,0.2,159.9,159.89,8.42082992]
[1762407733771,0.2,159.9,159.89,6.25429983]
[1762407733977,0.9,159.9,159.89,8.42082992]
[1762407734566,0.2,159.9,159.89,8.42082992]
[1762407735164,0.2,159.9,159.89,18.91965761]
[1762407735369,0.2,159.9,159.89,26.25965761]
[1762407737765,1e-08,159.9,159.89,26.25965761]
[1762407737962,1e-08,159.92,159.9,10.49882769]
[1762407738202,1e-08,159.92,159.91,9.50653009]
[1762407738488,1e-08,159.92,159.91,10.21653009]
[1762407739703,1e-08,159.92,159.91,16.47004769]
[1762407740394,1e-08,159.92,159.91,6.2535176]
[1762407740578,0.70000001,159.92,159.91,8.42004769]
[1762407740780,1e-08,159.92,159.91,8.42004769]
[1762407741487,1e-08,159.92,159.91,18.91887538]
[1762407742097,1e-08,159.92,159.91,18.20887538]
[1762407743176,1e-08,159.92,159.91,8.42004769]
[1762407743994,1e-08,159.92,159.91,29.01204769]
[1762407746804,1e-08,159.92,159.91,26.8455176]
[1762407747003,1e-08,159.92,159.91,29.01204769]
[1762407748880,1e-08,159.92,159.91,38.80087538]
[1762407749081,1e-08,159.92,159.91,46.14087538]
[1762407750800,1e-08,159.92,159.91,15.76004769]
[1762407752502,1e-08,159.92,159.91,13.5935176]
[1762407752798,1e-08,159.92,159.91,15.76004769]
[1762407754491,1e-08,159.92,159.91,26.21887538]
[1762407756500,1e-08,159.92,159.91,26.26887538]
[1762407760913,1e-08,159.92,159.91,25.54887538]
[1762407762522,0.66000001,159.92,159.91,15.76004769]
[1762407763012,0.66000001,159.92,159.91,8.42004769]
[1762407763200,1e-08,159.92,159.91,15.76004769]
[1762407769221,0.66000001,159.92,159.91,15.76004769]
[1762407773232,0.66000001,159.92,159.91,6.2535176]
[1762407773531,0.66000001,159.92,159.84,8.66612036]
[1762407773532,2.8265301,159.92,159.85,9.78882769]
[1762407773826,2.8265301,159.92,159.87,9.48653009]
[1762407774022,0.72,159.91,159.87,9.48653009]
[1762407774322,0.72,159.91,159.87,10.70477764]
[1762407774637,0.72,159.91,159.85,31.68435474]
[1762407774808,4.10477764,159.91,159.87,6.25508225]
[1762407775208,0.72,159.9,159.87,6.25508225]
[1762407775804,4.10477764,159.9,159.87,6.25508225]
[1762407776212,0.72,159.89,159.87,6.25508225]
[1762407776722,4.10477764,159.89,159.86,6.25547353]
[1762407777030,0.72,159.89,159.86,21.89415737]
[1762407777227,0.72,159.88,159.86,25.27893501]
[1762407777609,0.72,159.88,159.86,9.64025117]
[1762407779128,0.72,159.9,159.87,3.38477764]
[1762407779327,0.72,159.91,159.87,3.38477764]
[1762407779520,4.10477764,159.91,159.86,25.27893501]
[1762407779903,0.72,159.9,159.86,25.27893501]
[1762407780339,3.38477764,159.89,159.85,13.57573122]
[1762407780643,3.38477764,159.89,159.83,26.75008112]
[1762407780807,21.312,159.9,159.83,16.96125343]
[1762407780808,4.10477764,159.88,159.83,16.96125343]
[1762407781009,3.38477764,159.87,159.83,6.25647579]
[1762407781218,4.10477764,159.87,159.83,6.25647579]
[1762407781432,0.72,159.86,159.83,6.25647579]
[1762407782132,20.592,159.9,159.83,10.32125343]
[1762407782337,0.72,159.87,159.84,3.38477764]
[1762407782915,0.72,159.87,159.85,6.25586487]
[1762407785414,0.72,159.89,159.86,3.38477764]
[1762407785719,0.72,159.89,159.88,3.38477764]
[1762407786649,0.72,159.89,159.86,3.38477764]
[1762407786826,4.10477764,159.89,159.85,21.89552705]
[1762407787215,0.72,159.88,159.85,21.89552705]
[1762407788143,0.72,159.88,159.85,25.28030469]
[1762407789019,7.32000001,159.92,159.87,3.38477764]
[1762407789344,0.72,159.91,159.87,3.38477764]
[1762407790242,105.42,159.91,159.88,3.38477764]
[1762407791142,105.42,159.91,159.89,6.25429983]
[1762407792160,1e-08,159.92,159.9,3.38477764]
[1762407792447,1e-08,159.92,159.91,3.38477764]
[1762407794931,1e-08,159.92,159.91,9.63829524]
[1762407795830,1e-08,159.92,159.91,6.2535176]
[1762407796219,0.72000001,159.92,159.91,6.2535176]
[1762407796438,4.10477765,159.92,159.9,6.25385146]
[1762407796649,3.38477764,159.91,159.9,6.25385146]
[1762407796842,4.10477764,159.91,159.9,6.25385146]
[1762407797027,4.10477764,159.91,159.88,6.25469101]
[1762407797346,0.72,159.9,159.88,6.25469101]
[1762407798939,0.72,159.9,159.87,6.25508225]
[1762407805354,4.10477764,159.9,159.87,6.25508225]
[1762407805755,4.06477764,159.89,159.87,6.25508225]
[1762407806064,3.38477764,159.88,159.82,15.64179195]
[1762407806366,3.38477764,159.87,159.83,7.32]
[1762407806544,4.06477764,159.87,159.83,13.57664768]
[1762407806744,0.68,159.86,159.83,13.57664768]
[1762407806961,0.68,159.86,159.83,6.25664768]
[1762407808371,4.06477764,159.86,159.82,6.25703916]
[1762407808852,0.68,159.85,159.82,6.25703916]
[1762407809368,3.38477764,159.83,159.8,6.25744544]
[1762407809763,0.68,159.82,159.8,6.25744544]
[1762407810166,4.06477764,159.82,159.8,6.25744544]
[1762407810368,0.68,159.82,159.79,6.2582139]
[1762407810560,0.68,159.81,159.79,6.2582139]
[1762407811966,0.68,159.81,159.76,10.46882769]
[1762407811967,4.06477764,159.81,159.76,22.96828573]
[1762407812355,0.68,159.8,159.76,22.96828573]
[1762407813176,4.06477764,159.8,159.74,25.63913867]
[1762407813371,3.38477764,159.79,159.75,6.2597809]
[1762407813572,4.06477764,159.79,159.75,6.2597809]
[1762407813774,0.68,159.78,159.75,6.2597809]
[1762407818174,50.78208096,159.83,159.75,21.90923316]
[1762407818475,0.72,159.83,159.8,3.38477764]
[1762407819370,0.72,159.83,159.81,6.25743069]
[1762407820262,0.78178747,159.89,159.81,6.25743069]
[1762407820263,0.72,159.86,159.82,4.09477764]
[1762407820457,7.32,159.86,159.82,4.09477764]
[1762407820684,0.72,159.85,159.82,3.38477764]
[1762407820881,0.72,159.85,159.81,9.64220833]
[1762407821077,0.72,159.85,159.8,6.25780295]
[1762407821375,0.72,159.85,159.82,9.64146983]
[1762407821753,0.72,159.85,159.82,6.25669219]
[1762407822780,0.72,159.85,159.82,9.64146983]
[1762407823271,0.72,159.85,159.81,25.28578507]
[1762407823466,0.72,159.85,159.82,3.38477764]
[1762407823676,0.72,159.85,159.81,21.90100743]
[1762407823881,0.72,159.85,159.82,3.38477764]
[1762407825291,104.7,159.84,159.83,6.25664768]
[1762407825476,105.42,159.84,159.83,6.25664768]
[1762407826985,105.42,159.84,159.81,25.28578507]
[1762407827774,0.72,159.83,159.81,21.90100743]
[1762407828086,104.7,159.84,159.81,25.28578507]
[1762407828291,105.42,159.84,159.81,25.99578507]
[1762407828470,105.42,159.84,159.82,3.38477764]
[1762407828667,104.7,159.84,159.81,25.28578507]
[1762407828880,0.72,159.83,159.81,25.28578507]
[1762407829674,0.72,159.83,159.77,21.90649057]
[1762407829882,3.38477764,159.82,159.77,25.29126821]
[1762407830084,11.42477764,159.83,159.78,3.38477764]
[1762407830387,0.72,159.82,159.78,3.38477764]
[1762407830573,0.72,159.82,159.79,3.38477764]
[1762407831072,0.72,159.82,159.78,3.38477764]
[1762407831274,4.10477764,159.82,159.78,3.38477764]
[1762407831482,0.72,159.81,159.78,3.38477764]
[1762407831994,0.72,159.81,159.79,6.2582139]
[1762407833093,0.72,159.81,159.78,6.25860558]
[1762407834007,8.03,159.83,159.8,3.38477764]
[1762407834492,8.03,159.83,159.81,3.38477764]
[1762407835195,8.03,159.83,159.82,6.25703916]
[1762407836196,104.7,159.84,159.82,6.25703916]
[1762407836397,104.7,159.84,159.82,2.16795362]
[1762407837099,104.7,159.84,159.83,2.16795362]
[1762407838589,104.7,159.84,159.82,8.42499278]
[1762407839401,105.41,159.84,159.82,8.42499278]
[1762407841300,105.41,159.84,159.82,6.25703916]
[1762407844402,104.7,159.84,159.82,8.42499278]
[1762407844588,105.41,159.84,159.82,8.42499278]
[1762407845005,105.41,159.84,159.82,6.25703916]
[1762407845220,105.41,159.84,159.82,8.42499278]
[1762407845520,104.7,159.84,159.82,6.25703916]
[1762407845807,0.71,159.83,159.8,2.16795362]
[1762407846192,0.71,159.83,159.8,2.86795362]
[1762407847421,0.71,159.83,159.81,6.25743069]
[1762407848405,105.41,159.84,159.81,6.25743069]
[1762407849423,0.71,159.83,159.81,6.25743069]
[1762407850326,105.41,159.84,159.82,2.16795362]
[1762407850824,0.71,159.83,159.81,24.06896105]
[1762407854136,0.71,159.83,159.81,21.90100743]
[1762407854337,0.71,159.83,159.81,24.06896105]
[1762407854517,104.7,159.84,159.81,24.06896105]
[1762407854710,105.41,159.84,159.81,24.76896105]
[1762407855128,104.7,159.84,159.81,24.06896105]
[1762407855309,105.41,159.84,159.81,24.06896105]
[1762407855509,0.71,159.83,159.81,24.06896105]
[1762407856324,104.7,159.84,159.81,24.76896105]
[1762407856518,105.41,159.84,159.81,24.06896105]
[1762407856718,0.71,159.83,159.81,24.06896105]
[1762407857235,104.7,159.84,159.81,24.06896105]
[1762407857420,105.41,159.84,159.81,24.06896105]
[1762407859132,0.71,159.83,159.81,24.06896105]
[1762407859334,105.41,159.84,159.81,24.06896105]
[1762407859516,105.41,159.84,159.81,21.90100743]
[1762407859717,0.71,159.83,159.81,24.06896105]
[1762407862543,104.7,159.84,159.81,24.71896105]
[1762407862735,105.41,159.84,159.81,24.06896105]
[1762407863533,105.41,159.84,159.82,2.16795362]
[1762407865358,105.41,159.84,159.83,6.25664768]
[1762407867558,105.41,159.84,159.82,2.16795362]
[1762407868654,104.7,159.84,159.83,2.81795362]
[1762407868845,104.7,159.88,159.84,9.78882769]
[1762407869154,104.7,159.88,159.87,2.16795362]
[1762407869654,105.41,159.88,159.84,2.16795362]
[1762407869835,0.71,159.87,159.84,6.25588796]
[1762407872028,8.01,159.87,159.84,6.25588796]
[1762407872228,8.01,159.87,159.84,21.8965286]
[1762407872428,8.01,159.87,159.84,24.06448222]
[1762407872928,8.01,159.87,159.84,24.71448222]
[1762407873632,8.01,159.87,159.84,24.06448222]
[1762407874045,8.01,159.87,159.84,24.71448222]
[1762407874242,7.3,159.87,159.86,6.25547353]
[1762407874749,105.41,159.88,159.86,6.25547353]
[1762407875140,105.41,159.88,159.86,8.42342715]
[1762407875532,104.7,159.88,159.86,8.42342715]
[1762407876342,104.7,159.88,159.86,9.14342715]
[1762407876545,104.7,159.88,159.87,2.16795362]
[1762407877446,104.7,159.88,159.87,6.25508225]
[1762407877754,104.7,159.88,159.86,6.25544411]
[1762407877755,105.41,159.88,159.86,6.25544411]
[1762407877937,0.71,159.87,159.86,6.25544411]
[1762407878139,104.7,159.88,159.86,6.25544411]
[1762407878437,105.41,159.88,159.86,6.25544411]
[1762407878638,104.7,159.88,159.85,6.25585464]
[1762407878841,0.71,159.87,159.85,6.25585464]
[1762407879257,105.41,159.88,159.85,6.25585464]
[1762407879761,0.71,159.87,159.85,6.25585464]
[1762407879937,104.7,159.88,159.85,6.25585464]
[1762407880137,105.41,159.88,159.85,6.25585464]
[1762407880660,105.41,159.88,159.84,32.08476641]
[1762407881249,0.71,159.87,159.84,32.08476641]
[1762407881662,0.71,159.87,159.85,2.16795362]
[1762407881951,0.71,159.87,159.86,6.25547353]
[1762407885354,104.7,159.88,159.86,6.25547353]
[1762407885557,105.41,159.88,159.86,6.25547353]
[1762407886563,104.7,159.88,159.86,6.25547353]
[1762407886770,0.71,159.87,159.86,6.25547353]
[1762407887275,105.41,159.88,159.86,6.25547353]
[1762407888267,104.7,159.88,159.86,6.25547353]
[1762407888457,0.71,159.87,159.86,6.25547353]
[1762407888658,105.41,159.88,159.86,6.25547353]
[1762407888844,104.7,159.88,159.86,6.25547353]
[1762407889051,2.87795362,159.87,159.83,2.16795362]
[1762407889565,0.71,159.86,159.83,2.16795362]
[1762407889866,0.71,159.86,159.83,9.1446013]
[1762407890450,0.71,159.86,159.83,24.78622052]
[1762407892554,112.72,159.88,159.85,2.16795362]
[1762407892746,112.0,159.88,159.85,2.16795362]
[1762407892954,0.72,159.87,159.85,2.16795362]
[1762407893148,0.72,159.87,159.84,2.85795362]
[1762407893571,0.72,159.87,159.85,2.16795362]
[1762407894067,0.72,159.87,159.86,6.25547353]
[1762407896075,0.72,159.87,159.85,6.25586487]
[1762407896369,4.10698803,159.87,159.84,6.25615382]
[1762407896762,0.72,159.86,159.84,6.25615382]
[1762407896955,8.02,159.86,159.84,6.25615382]
[1762407897279,0.72,159.85,159.84,6.25615382]
[1762407897454,8.02,159.86,159.84,6.25615382]
[1762407898079,7.3,159.86,159.84,9.64314185]
[1762407898379,7.3,159.86,159.84,10.33314185]
[1762407898961,7.3,159.86,159.84,9.64314185]
[1762407900074,8.02,159.86,159.84,9.64314185]
[1762407900271,100.49452508,188.08,159.84,9.64314185]
[1762407900272,1e-08,159.92,159.86,9.78882769]
[1762407900462,21.31200001,159.92,159.88,3.38698803]
[1762407900672,0.72000001,159.92,159.89,3.38698803]
[1762407900893,0.72000001,159.92,159.9,3.38698803]
[1762407901562,0.72000001,159.92,159.89,3.38698803]
[1762407902176,0.72000001,159.92,159.9,6.25390869]
[1762407903863,1e-08,159.92,159.91,4.07698803]
[1762407904081,1e-08,159.92,159.91,20.11933332]
[1762407908170,1e-08,159.92,159.91,16.04234529]
[1762407908383,1e-08,159.92,159.91,6.2535176]
[1762407910167,0.72000001,159.92,159.91,6.2535176]
[1762407910572,0.72000001,159.92,159.89,19.02201477]
[1762407910573,4.10698804,159.92,159.89,6.25429983]
[1762407911189,0.72,159.91,159.89,6.25429983]
[1762407911385,0.72,159.91,159.88,6.25469101]
[1762407911588,0.72000001,159.92,159.88,25.96840658]
[1762407911889,1e-08,159.92,159.89,4.07698803]
[1762407912075,1e-08,159.92,159.89,10.47882769]
[1762407912277,1e-08,159.92,159.9,4.07698803]
[1762407912480,1e-08,159.92,159.89,13.86581572]
[1762407912685,1e-08,159.92,159.9,4.07698803]
[1762407913080,1e-08,159.92,159.91,6.2535176]
[1762407913879,0.72000001,159.92,159.91,6.2535176]
[1762407914589,1e-08,159.92,159.91,6.2535176]
[1762407917403,1e-08,159.92,159.91,3.38698803]
[1762407919796,1e-08,159.92,159.91,9.64050563]
[1762407920201,1e-08,159.92,159.91,6.2535176]
[1762407920403,11.40698804,159.92,159.86,16.32860063]
[1762407920571,3.38698803,159.9,159.86,15.63860063]
[1762407920902,0.72,159.89,159.86,15.63860063]
[1762407921473,0.72,159.89,159.87,6.25508225]
[1762407921695,0.72,159.89,159.86,21.89407416]
[1762407922223,0.72,159.89,159.86,6.25547353]
[1762407922907,0.72,159.89,159.86,25.2811454]
[1762407924308,7.30000001,159.92,159.87,3.38698803]
[1762407924483,7.97000001,159.92,159.88,4.05698803]
[1762407924682,0.67,159.91,159.88,3.38698803]
[1762407925290,0.67,159.91,159.89,3.38698803]
[1762407925976,1e-08,159.92,159.9,3.38698803]
[1762407926305,1e-08,159.92,159.91,3.38698803]
[1762407928286,1e-08,159.92,159.91,6.2535176]
[1762407928720,0.67000001,159.92,159.9,6.25385584]
[1762407929287,1e-08,159.92,159.9,6.25385584]
[1762407929507,1e-08,159.92,159.9,9.64084387]
[1762407930416,0.67000001,159.92,159.9,9.64084387]
[1762407931497,1e-08,159.92,159.89,21.8900494]
[1762407931701,1e-08,159.92,159.9,3.38698803]
[1762407931899,0.67000001,159.92,159.9,3.38698803]
[1762407932525,0.67000001,159.92,159.91,3.38698803]
[1762407932703,1e-08,159.92,159.91,3.38698803]
[1762407933922,1e-08,159.92,159.91,9.64050563]
[1762407934401,1e-08,159.92,159.91,6.2535176]
[1762407934603,1e-08,159.92,159.91,9.64050563]
[1762407936205,1e-08,159.92,159.91,6.2535176]
[1762407938138,1e-08,159.92,159.91,34.46781572]
[1762407940325,1e-08,159.92,159.91,20.12933332]
[1762407943618,0.66000001,159.92,159.91,19.42933332]
[1762407943820,0.66000001,159.92,159.91,6.2535176]
[1762407944532,0.66000001,159.92,159.87,6.25508225]
[1762407944533,4.04698804,159.92,159.87,6.25508225]
[1762407944733,3.38698803,159.91,159.87,6.25508225]
[1762407944936,4.04698803,159.91,159.87,6.25508225]
[1762407945127,0.66,159.9,159.87,6.25508225]
[1762407945333,3.38698803,159.88,159.74,0.2]
[1762407945510,3.38698803,159.87,159.82,3.38698803]
[1762407945718,3.38698803,159.86,159.81,3.38698803]
[1762407945934,3.38698803,159.87,159.81,3.38698803]
[1762407946437,0.66,159.86,159.83,6.25664768]
[1762407947138,0.66,159.86,159.83,9.64363571]
[1762407948541,0.66,159.88,159.85,9.6428529]
[1762407948738,0.66,159.87,159.85,6.25586487]
[1762407949324,0.66,159.87,159.84,6.25620995]
[1762407950743,0.66,159.87,159.83,19.02860725]
[1762407951145,0.66,159.87,159.84,3.38698803]
[1762407951318,105.36,159.87,159.83,19.02860725]
[1762407951823,0.66,159.86,159.83,19.02860725]
[1762407952027,0.66,159.86,159.82,6.25703916]
[1762407952262,4.04698803,159.86,159.82,6.25703916]